Cogmind - Beta 17 @@@ ROGUE MODE // 2026.07.06 @ 20:21:15 Player: KuFish Result: Destroyed by H-66 Slayer with Heavy Assault Rifle Performance ------------- Evolutions (4) 2000 Regions Visited (4) 800 Robots Destroyed (7) 35 Value Destroyed (297) 297 Prototype IDs (0) 0 Alien Tech Used (0) 0 Bonus (0) 0 TOTAL SCORE: 3132 Bonus ------- None Cogmind --------- Core Integrity 0/850 Matter 207/300 Energy 34/100 System Corruption 0% Temperature Cool (0) Movement Core (150) Ox2 Location -6/Factory Parts ------- > --- POWER (3) -------- (None) > --- PROPULSION (4) --- (None) > --- UTILITY (4) ------ Small Storage Unit > --- WEAPON (4) ------- Axe > --- INVENTORY (8) ---- Hacking Suite Salvaging Laser CPS Tube (2) Peak State ------------ > --- POWER ------------ Ion Engine Light Nuclear Core > --- PROPULSION ------- Aluminum Leg Carbon-fiber Leg Carbon-fiber Leg > --- UTILITY ---------- Cryofiber Web Small Storage Unit Improved Sensor Array Improved Medium Armor Plating > --- WEAPON ----------- High-powered Shock Rifle Light Assault Rifle Autogun Autogun > --- INVENTORY -------- Kinecellerator Hacking Suite Salvaging Laser Particle Cannon Heavy Plasma Cannon Rocket Launcher CPS Tube Axe [Rating: 34] Favorites ----------- Power Ion Engine Engine Ion Engine Power Core Light Nuclear Core Propulsion Aluminum Leg Leg Aluminum Leg Utility Small Storage Unit Device Cryofiber Web Storage Small Storage Unit Processor Improved Melee Analysis Suite Hackware Improved System Shield Protection Improved Medium Armor Plating Weapon Light Assault Rifle Energy Gun Small Laser Energy Cannon Particle Cannon Ballistic Gun Light Assault Rifle Ballistic Cannon Heavy Flak Cannon Launcher Rocket Launcher Slashing Weapon Axe Build | -11 -10 -10 -8 -6 ------- Run | Yrd Mat Sub Scr Fac Slots Evolved 8 | . . . . 8 Power 2 | . . . . 2 Propulsion 2 | . . . . 2 Utility 2 | . . . . 2 Weapon 2 | . . . . 2 Parts Attached 27 | 6 . . 3 18 Power 3 | 1 . . 1 1 Engine 2 | 1 . . 1 . Core 1 | . . . . 1 Reactor . | . . . . . Propulsion 4 | 2 . . . 2 Treads . | . . . . . Leg 4 | 2 . . . 2 Wheel . | . . . . . Hover . | . . . . . Flight . | . . . . . Utility 7 | 1 . . 1 5 Device 3 | . . . 1 2 Storage 1 | 1 . . . . Processor 1 | . . . . 1 Hackware 1 | . . . . 1 Protection 1 | . . . . 1 Artifact . | . . . . . Weapon 13 | 2 . . 1 10 Energy Gun 3 | 1 . . . 2 Energy Cannon 2 | . . . . 2 Ballistic Gun 4 | 1 . . 1 2 Ballistic Cannon 2 | . . . . 2 Launcher 1 | . . . . 1 Special Weapon . | . . . . . Impact Weapon . | . . . . . Slashing Weapon 1 | . . . . 1 Piercing Weapon . | . . . . . Special Melee Weapon . | . . . . . Unidentified Prototypes . | . . . . . Parts Lost 20 | . . . . 20 Power 2 | . . . . 2 Propulsion 4 | . . . . 4 Utility 5 | . . . . 5 Weapon 9 | . . . . 9 Highest Loss Streak 16 | . . . . 16 To Critical Strikes . | . . . . . Average Backups 6 | 2 4 4 7 6 Power . | . 1 1 . . Propulsion . | 1 2 2 . . Utility 1 | . . . 1 1 Weapon 3 | . 1 1 4 3 Tool/Special . | . . . . . Unused Backups 6 | . . . 3 3 Power . | . . . . . Propulsion 2 | . . . 2 . Utility 1 | . . . . 1 Weapon 1 | . . . . 1 Tool/Special 2 | . . . 1 1 Average Slot Usage (%) 91 | . 85 85 99 74 Engine 11 | . 14 14 14 5 Leg 24 | . 28 28 28 14 Device 10 | . . . 13 9 Storage 12 | . 14 14 14 6 Energy Gun 6 | . 14 14 6 3 Energy Cannon 1 | . . . . 4 Ballistic Gun 19 | . 14 14 21 16 Peak Build Rating 34 | 6 6 6 13 34 Average Rating 13 | 4 6 6 11 25 On Entrance 6 | . 6 6 6 13 Avg Prop Armor Cover (%) . | . . . . . Naked Turns . | . . . . . Heaviest Build 36 | 10 10 10 15 36 Greatest Support 40 | 20 20 20 20 40 Greatest Overweight (x) 10 | . . . . 10 Average Overweight (x) . | . . . . . Largest Inventory Capacity 8 | 8 8 8 8 8 Average Capacity 7 | 6 8 8 8 8 Most Carried 8 | 5 4 4 8 8 Average Carried 6 | 2 4 4 7 6 Final Capacity 8 | 8 8 8 8 8 Final Carried 8 | 4 4 4 8 3 Class Distribution -------------------- 77% | Mutant 11% | Gunner 7% | Scavenger-Tank 3% | Tank Dominant Class ---------------- Mutant | -10/Materials Mutant | -10/Subcaves Mutant | -8/Scraptown Gunner | -6/Factory Resources | -11 -10 -10 -8 -6 ----------- Run | Yrd Mat Sub Scr Fac Matter Collected 547 | 142 . 107 44 254 Remotely . | . . . . . Salvage Created 342 | . . 51 . 291 Parts 8 | . . 1 . 7 Haulers Intercepted . | . . . . . Recyclers Shooed . | . . . . . Parts Field Recycled . | . . . . . Retrieved Matter . | . . . . . Parts Self-Destructed 5 | . . 5 . . Prevented . | . . . . . Parts Restored . | . . . . . Kills | -11 -10 -10 -8 -6 ------- Run | Yrd Mat Sub Scr Fac Combat Hostiles Destroyed 7 | . . 1 . 6 Guns 4 | . . 1 . 3 Cannons 3 | . . . . 3 Classes Destroyed 4 | . . 1 . 3 Swarmer 3 | . . . . 3 Grunt 2 | . . . . 2 Hunter 1 | . . . . 1 Subdweller 1 | . . 1 . . Best Kill Streak 3 | . . 1 . 3 Combat Bots Only 3 | . . 1 . 3 Max Kills in Single Turn 1 | . . 1 . 1 Gunslinging . | . . . . . Exploded . | . . . . . Melee . | . . . . . Uniques/NPCs Destroyed . | . . . . . Combat | -11 -10 -10 -8 -6 -------- Run | Yrd Mat Sub Scr Fac Hostile Shots Fired 255 | . . 5 . 250 Missed 60 | . . 3 . 57 Hits 195 | . . 2 . 193 Projectile 195 | . . 2 . 193 Critical Strikes 4 | . . . . 4 Damage Taken 3032 | . . 76 . 2956 Core 855 | . . . . 855 Absorbed by Shields . | . . . . . Core Remaining (%) 100 | 100 . . 100 . Volleys Fired 39 | . . 13 . 26 Largest 4 | . . 1 . 4 Hottest 178 | . . 20 . 178 Shots Fired 105 | . . 13 . 92 Gun 84 | . . 13 . 71 Cannon 17 | . . . . 17 Launcher 4 | . . . . 4 Special . | . . . . . Kinetic 72 | . . 13 . 59 Thermal 13 | . . . . 13 Explosive 4 | . . . . 4 Electromagnetic 16 | . . . . 16 Robot Hit Streak 11 | . . 1 . 11 Robot Miss Streak 5 | . . 1 . 5 Penetration Max . | . . . . . Secondary Targets . | . . . . . Shots Hit Robots 47 | . . 2 . 45 Core Hits 26 | . . 1 . 25 Critical Kills . | . . . . . Critical Parts Destroyed . | . . . . . Critical Strikes 1 | . . . . 1 Corrupt 1 | . . . . 1 Melee Attacks 1 | . . . . 1 Impact . | . . . . . Slashing 1 | . . . . 1 Piercing . | . . . . . Sneak Attacks . | . . . . . Combat Hostiles . | . . . . . Follow-up Attacks . | . . . . . Damage Inflicted 916 | . . 17 . 899 Guns 473 | . . 17 . 456 Cannons 190 | . . . . 190 Explosions 253 | . . . . 253 Melee . | . . . . . Ramming . | . . . . . Kinetic 363 | . . 17 . 346 Thermal 143 | . . . . 143 Explosive 253 | . . . . 253 Electromagnetic 157 | . . . . 157 Impact . | . . . . . Slashing . | . . . . . Piercing . | . . . . . Highest Corruption . | . . . . . Average Corruption . | . . . . . Corruption Purged . | . . . . . Corruption Blocked . | . . . . . Overload Shots . | . . . . . Overflow Damage . | . . . . . Projectiles . | . . . . . Explosions . | . . . . . Melee . | . . . . . Knockbacks 1 | . . . . 1 Impact . | . . . . . Kinetic 1 | . . . . 1 Secondary . | . . . . . Self-Inflicted Damage . | . . . . . Shots . | . . . . . Rammed . | . . . . . Targets Rammed . | . . . . . Kicked . | . . . . . Crushed . | . . . . . Highest Temperature 322 | . . . . 322 Average Temperature 127 | . . . . 127 Received Heat Transfer 174 | . . 18 . 156 Siege Activations . | . . . . . Martial Activations . | . . . . . Shielding Activations . | . . . . . Robots Disrupted . | . . . . . Combat Hostiles . | . . . . . Robots Corrupted . | . . . . . Combat Hostiles . | . . . . . Parts Fried 3 | . . . . 3 Impact Corruptions . | . . . . . Robots Melted . | . . . . . Combat Hostiles . | . . . . . Parts Melted 1 | . . . . 1 Heat Transferred 259 | . . . . 259 Parts Sabotaged . | . . . . . Parts Stolen . | . . . . . Parts Stripped . | . . . . . Power Chain Reactions . | . . . . . Alert | -11 -10 -10 -8 -6 ------- Run | Yrd Mat Sub Scr Fac Maximum Alert Level . | . . . . . Low Security (%) 100 | 100 100 . . 100 Level 1 . | . . . . . Level 2 . | . . . . . Level 3 . | . . . . . Level 4 . | . . . . . Level 5 . | . . . . . High Security . | . . . . . Max Security . | . . . . . Peak Influence 65 | . . . . 65 Initial . | . . . . . Average 9 | . . . . 11 Influence Increases 187 | . . . . 187 Destroy 0b10 Robot/C 120 | . . . . 120 Destroy Leader 20 | . . . . 20 Disable Machine 15 | . . . . 15 Destroy Structure 17 | . . . . 17 Lose Combat Pursuer 15 | . . . . 15 Influence Decreases 187 | . . . . 187 Time Decay 140 | . . . . 140 Lost Part 47 | . . . . 47 Squads Dispatched 3 | . 1 . . 2 Investigation 1 | . 1 . . . Extermination . | . . . . . Reinforcement 2 | . . . . 2 Assault . | . . . . . Garrison . | . . . . . Intercept . | . . . . . Searches Triggered . | . . . . . Construction Impeded 1 | . . . . 1 Haulers Reinforced . | . . . . . Active Scanning Responses . | . . . . . Cargo Convoy Interrupts . | . . . . . Stealth | -11 -10 -10 -8 -6 --------- Run | Yrd Mat Sub Scr Fac Distress Signals . | . . . . . Communications Jammed . | . . . . . Distress Signals . | . . . . . Times Spotted 14 | . . 2 . 12 Peak Tracking Total 5 | . . 2 . 5 Tactical Retreats 1 | . . . . 1 Traps | -11 -10 -10 -8 -6 ------- Run | Yrd Mat Sub Scr Fac Traps Triggered . | . . . . . Indirectly . | . . . . . Trap Hack Attempts . | . . . . . Triggered . | . . . . . Disarmed . | . . . . . Reprogrammed . | . . . . . Reused . | . . . . . Traps Extracted . | . . . . . Installed . | . . . . . Triggered . | . . . . . Machines | -11 -10 -10 -8 -6 ---------- Run | Yrd Mat Sub Scr Fac Machines Disabled 1 | . . . . 1 Max in Single Turn 1 | . . . . 1 Machines Repaired . | . . . . . Machines Dismantled . | . . . . . Machines Sabotaged . | . . . . . Overloaded Fab Kills . | . . . . . Hacking | -11 -10 -10 -8 -6 --------- Run | Yrd Mat Sub Scr Fac Machines Accessed 3 | . . . 3 . Terminals . | . . . . . Fabricators . | . . . . . Repair Stations . | . . . . . Recycling Units . | . . . . . Scanalyzers . | . . . . . Garrison Access . | . . . . . Total Hacks 27 | . . . 27 . Successful 27 | . . . 27 . Failed . | . . . . . Catastrophic . | . . . . . Database Lockouts . | . . . . . Manual . | . . . . . Terminals . | . . . . . Fabricators . | . . . . . Repair Stations . | . . . . . Recycling Units . | . . . . . Scanalyzers . | . . . . . Garrison Access . | . . . . . Terminal Hacks 27 | . . . 27 . Record 27 | . . . 27 . Fabricator Hacks . | . . . . . Repair Station Hacks . | . . . . . Recycling Unit Hacks . | . . . . . Scanalyzer . | . . . . . Garrison Access Hacks . | . . . . . Unauthorized Hacks . | . . . . . Terminals . | . . . . . Fabricators . | . . . . . Repair Stations . | . . . . . Recycling Units . | . . . . . Scanalyzers . | . . . . . Garrison Access . | . . . . . Data Cores Recovered . | . . . . . Used . | . . . . . Hacking Detections . | . . . . . Full Trace Events . | . . . . . Feedback Events . | . . . . . Feedback Blocked . | . . . . . Robot Schematics Acquired . | . . . . . Robots Built . | . . . . . Authchips . | . . . . . Time . | . . . . . Total Robot Build Rating . | . . . . . Part Schematics Acquired . | . . . . . Parts Built . | . . . . . Authchips . | . . . . . Time . | . . . . . Total Part Build Rating . | . . . . . Part Studies Acquired . | . . . . . Parts Repaired . | . . . . . Time . | . . . . . Parts Recycled . | . . . . . Recycled Matter . | . . . . . Retrieved Matter . | . . . . . Retrieved Components . | . . . . . Parts Scanalyzed . | . . . . . Part Schematics Acquired . | . . . . . Parts Damaged . | . . . . . Bothacking | -11 -10 -10 -8 -6 ------------ Run | Yrd Mat Sub Scr Fac Used RIF Installer . | . . . . . Robots Hacked . | . . . . . Non-combat . | . . . . . Combat . | . . . . . Robot Hacks Applied . | . . . . . Relay Couplers Released . | . . . . . Fabnet Peak Effective % . | . . . . . Robots Rewired . | . . . . . Allies Hacked . | . . . . . Hacks Repelled . | . . . . . Allies | -11 -10 -10 -8 -6 -------- Run | Yrd Mat Sub Scr Fac Total Allies . | . . . . . Largest Group . | . . . . . Highest-Rated Group . | . . . . . Highest-Rated Ally . | . . . . . Total Orders . | . . . . . Ally Attacks . | . . . . . Total Damage . | . . . . . Kills . | . . . . . Allies Corrupted . | . . . . . Allies Melted . | . . . . . Intel | -11 -10 -10 -8 -6 ------- Run | Yrd Mat Sub Scr Fac Active Infowar (turns) 323 | . . . . 323 Sensors 323 | . . . . 323 Robot Analysis Total . | . . . . . Derelict Logs Recovered 1 | . . 1 . . Drone Launches . | . . . . . Drone Recoveries . | . . . . . Exploration | -11 -10 -10 -8 -6 ------------- Run | Yrd Mat Sub Scr Fac Turns Passed 3037 | 94 52 275 1893 723 Spaces Moved 2228 | 73 44 210 1565 336 Core 24 | 12 . . . 12 Treads . | . . . . . Legs 2204 | 61 44 210 1565 324 Wheels . | . . . . . Hover . | . . . . . Flight . | . . . . . Fastest Speed 50 | 50 120 120 120 100 Average Speed 126 | 108 120 120 120 164 Slowest Speed 550 | 120 120 120 120 550 Overloaded Moves . | . . . . . Propulsion Burnouts . | . . . . . Robots Hopped . | . . . . . Potential Cave-ins . | . . . . . Cave-ins Triggered . | . . . . . Exploration Rate (%) 16 | 4 8 6 58 7 Regions Visited 4 Branch Regions 2 Pre-discovered Areas . | . . . . . Known Exits Taken . | . . . . . Unknown Exits Taken 4 | 1 1 1 1 . Scrap Searched 5 | . . . 5 . Spaces Dug 1 | . . . . 1 Terrain Destroyed 16 | . . . . 16 Melee . | . . . . . Projectile 2 | . . . . 2 AOE 14 | . . . . 14 Terrain Rammed . | . . . . . Walls Destroyed . | . . . . . Machines Disabled . | . . . . . Actions | -11 -10 -10 -8 -6 --------- Run | Yrd Mat Sub Scr Fac Total 2389 | 88 43 222 1582 454 Wait 53 | . . . . 53 Move 2224 | 72 43 209 1564 336 Hop . | . . . . . Pick Up 33 | 10 . . 10 13 Fast Attach . | . . . . . Attach 25 | 6 . . 2 17 Detach 1 | . . . . 1 Swap 5 | . . . 1 4 Drop 8 | . . . 5 3 Fire 39 | . . 13 . 26 Melee 1 | . . . . 1 Ram . | . . . . . Kick . | . . . . . Crush . | . . . . . Escape Stasis . | . . . . . Rewire . | . . . . . Trap . | . . . . . Miscellaneous . | . . . . . Route ------- -11/Scrapyard -10/Materials -10/Subcaves -8/Scraptown -6/Factory History --------- Turn | Location | Event 11 | -11/Scrapyard | Discovered new exit (range 15) 95 | -11/Scrapyard | Entered Materials 96 | -10/Materials | Met a group of wandering Federalists 141 | -10/Materials | Discovered new exit (range 8) 147 | -10/Materials | Entered Subcaves 147 | -10/Subcaves | Accompanied by 2 allies 148 | -10/Subcaves | Continued accompanying wandering Federalists (5) 148 | -10/Subcaves | Approached by a straggling Scientist 151 | -10/Subcaves | Learned Materials emergency access door positions 186 | -10/Subcaves | A swath of the cavern ceiling suddenly collapsed 305 | -10/Subcaves | Build established: Mutant 397 | -10/Subcaves | Wandering Federalist uncovered a shortcut to Scraptown 422 | -10/Subcaves | Entered Scraptown 746 | -8/Scraptown | Discovered new exit (range 5) 910 | -8/Scraptown | Visited TADAMA 966 | -8/Scraptown | Visited UFD Registry 1027 | -8/Scraptown | Visited Assassins FH 1479 | -8/Scraptown | Visited Cyclists 1632 | -8/Scraptown | Visited The Evicted 1670 | -8/Scraptown | Visited Comm Corps 2012 | -8/Scraptown | Visited Cave Peace 2315 | -8/Scraptown | Entered Factory 2315 | -6/Factory | Evolved 8 slots: Power x2, Propulsion x2, Utility x2, Weapon x2 2611 | -6/Factory | Build established: Gunner 2930 | -6/Factory | Spotted B-75 Beast 3017 | -6/Factory | Core integrity fell below 50% 3032 | -6/Factory | Core integrity fell below 20% 3038 | -6/Factory | Destroyed by H-66 Slayer with Heavy Assault Rifle Last Messages --------------- Cryofiber Web destroyed. Slug penetrates Wall. Hvy. Flak Cannon destroyed. Slug penetrates Wall. Wall collapses. Penetrated by Slug. Slug penetrates Wall. U-05 Engineer lays Concrete. Penetrated by Slug. Hvy. Flak Cannon destroyed. Slug penetrates Wall. Hvy. Plasma Cannon destroyed. Slug penetrates Wall. U-05 Engineer lays Concrete. Penetrated by Slug. Kinecellerator destroyed. Acquired 1 matter. U-05 Engineer lays Concrete. Slug penetrates Wall. Penetrated by Slug. Map ----- +----------------------------------------------------+ | # # ########????????????????? | | """" # # """ #???????????????????????? | | """" # + """ #????????????????#??????? | | "" # # """ #????????????????# ?###?? | | # # #?########???????# ?# ?? | | ############### ### ######### ## ?? | | ^ ^ % # ## #? | | % # """ ## "? | | %%"^""" """ """ # """ #? ![ "? | | """ """ """ """ # """ ##! [[ #? | | "" """ """ """ # ## [[ #? | | ######## # ## """ #? | | #????# """ """ """ """ # ## """ ## | | " #????# """ """ """ """ # "" ## """ # | | " #????# """ """ """ """ # """ ## "" ! + | | " #????# # S" ## "" # | | " #????" ^""" """ """ """ # """ ## # | | " #???? """ """ """ """ # """ ## """ """ #! | | " #???"" """ ?"" """ """ # ## """ """ # | | " #???## ###+##### "" " # | | #????# "?? ?"" """ """ / | | #????# "?? ??? """ """ R | | #????# "?????? """ """ # | | #????? ???? h ? | | ###????? ????? h ? | | ????????##????????#######@###""""""""""" # #### | | ???????????????????????# % #[ ! | | ??????????????????????##% [] #[![ | | ??????????????????????#; ] """ #[! ! | | ??????????????????????## """ # | | ???????????????????????# """ # """"""""" | | ???????????????????????# # | | ???????????????????????########################### | | | | | | | | | | | | | | | | | | | | | | | | | | | | | | | | | | | +----------------------------------------------------+ Best States ------------- Heat Dissipation 37 Energy Generation 19 Energy Capacity 310 Matter Stores 300 Matter Capacity 300 Sight Range 16 Robot Scan Range 15 Terrain Scan Density 10 Base Temperature (-) 100 Armor Coverage 225 Evasion (%) 55 Melee Accuracy 6 Kinecelleration 30 Defensive Hacking 12 Item Schematics ----------------- None Robot Schematics ------------------ None Fabricated ------------ Nothing Repaired ---------- Nothing Studied --------- None Alien Tech Used ----------------- None Achievements -------------- Civilization 2243 More Dakka Please Challenges ------------ None Game ------ Seed SuperquantumPietyWall Manual? 0 Play Time 00:38:22 Cumulative 12.0 hours Start 2026.07.06 @ 19:31:06 End 2026.07.06 @ 20:21:15 Sessions 1 Manual Loads 0 Difficulty Rogue Special Mode None Game No. 22 Rogue 22 Adventurer 0 Explorer 0 Win Type - Total 0 Types 0/0/0/0/0/0/0/0/0/0 Lore% 13 Gallery% 14 Achievement% 11 Wizard Run 0 Options --------- Layout 1 ASCII 0 Keyboard 0 Movement Arrows Keybinds 0 Fullscreen 2 Font 24/Smallcaps Map View 50x40 Zoom Use 0% Tactical HUD 0 Map Filters NONE Filters NONE Steam 1 RUN: c258894c-b682-4adc-a049-51ee14e1bbaf